[Event "*** Titled Tuesday Blitz"]
[Site "Chess.com"]
[Date "2019.04.02"]
[Round "2"]
[White "Gabrielian_Artur"]
[Black "Cruel_Yaro"]
[Result "0-1"]
[WhiteElo "2749"]
[BlackElo "2664"]
[TimeControl "180+2"]
[EndTime "14:24:16 PDT"]
[Termination "Cruel_Yaro won by resignation"]

1. e4 {[%clk 0:03:01.9]} 1... e5 {[%clk 0:02:55.8]} 2. Nf3 {[%clk 0:03:02.2]}
2... Nf6 {[%clk 0:02:56.7]} 3. Nxe5 {[%clk 0:03:00.5]} 3... d6 {[%clk
0:02:57.8]} 4. Nf3 {[%clk 0:03:01.4]} 4... Nxe4 {[%clk 0:02:59.3]} 5. Qe2 {[%clk
0:03:02.8]} 5... Qe7 {[%clk 0:02:59.9]} 6. d3 {[%clk 0:03:04]} 6... Nf6 {[%clk
0:03:00.8]} 7. Nc3 {[%clk 0:03:05.2]} 7... Qxe2+ {[%clk 0:02:55.6]} 8. Bxe2
{[%clk 0:03:05.9]} 8... Be7 {[%clk 0:02:57.1]} 9. Bd2 {[%clk 0:03:06.8]} 9... c6
{[%clk 0:02:56]} 10. O-O-O {[%clk 0:03:07.5]} 10... Na6 {[%clk 0:02:56.6]} 11.
Rde1 {[%clk 0:03:08.3]} 11... Nc7 {[%clk 0:02:55.5]} 12. Bd1 {[%clk 0:03:09]}
12... h6 {[%clk 0:02:54.3]} 13. h3 {[%clk 0:03:08.5]} 13... Ne6 {[%clk
0:02:52.1]} 14. g4 {[%clk 0:03:07.9]} 14... Bd7 {[%clk 0:02:49.2]} 15. Nh4
{[%clk 0:03:08.3]} 15... O-O-O {[%clk 0:02:32.6]} 16. Nf5 {[%clk 0:03:09]} 16...
Bf8 {[%clk 0:02:33.4]} 17. f4 {[%clk 0:03:04.1]} 17... d5 {[%clk 0:02:34.1]} 18.
Rhf1 {[%clk 0:03:01.6]} 18... g6 {[%clk 0:02:33.3]} 19. Ng3 {[%clk 0:03:00.3]}
19... Nc5 {[%clk 0:02:25.4]} 20. Nce2 {[%clk 0:02:59.7]} 20... h5 {[%clk
0:02:19]} 21. Bc3 {[%clk 0:02:57.7]} 21... Bg7 {[%clk 0:02:19.6]} 22. g5 {[%clk
0:02:49.3]} 22... Ne8 {[%clk 0:02:20.4]} 23. h4 {[%clk 0:02:47.9]} 23... Bxc3
{[%clk 0:02:09.7]} 24. Nxc3 {[%clk 0:02:48]} 24... Nd6 {[%clk 0:02:11]} 25. Re5
{[%clk 0:02:22.2]} 25... Rde8 {[%clk 0:02:06.1]} 26. Nce2 {[%clk 0:02:21.8]}
26... Bh3 {[%clk 0:02:00.9]} 27. Rh1 {[%clk 0:02:13.6]} 27... Bg4 {[%clk
0:02:01.8]} 28. Nd4 {[%clk 0:02:12.3]} 28... Bxd1 {[%clk 0:02:02.5]} 29. Kxd1
{[%clk 0:02:13.1]} 29... Nd7 {[%clk 0:02:03.1]} 30. Ree1 {[%clk 0:02:07.7]}
30... Rxe1+ {[%clk 0:01:59.2]} 31. Rxe1 {[%clk 0:02:06.1]} 31... Re8 {[%clk
0:01:58.7]} 32. Rxe8+ {[%clk 0:02:01.1]} 32... Nxe8 {[%clk 0:02:00.6]} 33. Ke2
{[%clk 0:01:50]} 33... Nd6 {[%clk 0:01:58.6]} 34. Nf3 {[%clk 0:01:44.7]} 34...
Kd8 {[%clk 0:01:51.2]} 35. Ke3 {[%clk 0:01:36.2]} 35... Ke7 {[%clk 0:01:50.2]}
36. f5 {[%clk 0:01:32.9]} 36... c5 {[%clk 0:01:45.9]} 37. c3 {[%clk 0:01:25.3]}
37... Nxf5+ {[%clk 0:01:40.9]} 38. Nxf5+ {[%clk 0:01:25.8]} 38... gxf5 {[%clk
0:01:42.8]} 39. Kf4 {[%clk 0:01:24.5]} 39... Ke6 {[%clk 0:01:44.1]} 40. d4
{[%clk 0:01:19.4]} 40... c4 {[%clk 0:01:42.9]} 41. Nd2 {[%clk 0:01:16.7]} 41...
Nf8 {[%clk 0:01:41.9]} 42. b3 {[%clk 0:00:58]} 42... Ng6+ {[%clk 0:01:41.9]} 43.
Kg3 {[%clk 0:00:58.9]} 43... f4+ {[%clk 0:01:40]} 44. Kh3 {[%clk 0:00:54.5]}
44... b5 {[%clk 0:01:41.1]} 45. bxc4 {[%clk 0:00:52.4]} 45... bxc4 {[%clk
0:01:41.1]} 46. Nf3 {[%clk 0:00:42.6]} 46... Kf5 {[%clk 0:01:41.8]} 47. Nd2
{[%clk 0:00:43.7]} 47... Nf8 {[%clk 0:01:32.9]} 48. Kg2 {[%clk 0:00:34]} 48...
Kg4 {[%clk 0:01:31.7]} 49. Nf3 {[%clk 0:00:34.3]} 49... Ng6 {[%clk 0:01:32.3]}
50. Kf2 {[%clk 0:00:27]} 50... a6 {[%clk 0:01:27.5]} 51. a4 {[%clk 0:00:27.4]}
51... a5 {[%clk 0:01:26.9]} 52. Ke2 {[%clk 0:00:28.5]} 52... Kf5 {[%clk
0:01:25.9]} 53. Kf2 {[%clk 0:00:26.4]} 53... f6 {[%clk 0:01:17]} 54. gxf6 {[%clk
0:00:26.7]} 54... Kxf6 {[%clk 0:01:18.9]} 55. Kg2 {[%clk 0:00:26]} 55... Kf5
{[%clk 0:01:19.9]} 56. Kf2 {[%clk 0:00:26.9]} 56... Kg4 {[%clk 0:01:20.9]} 57.
Ng5 {[%clk 0:00:23.7]} 57... Nxh4 {[%clk 0:01:16.1]} 58. Nf7 {[%clk 0:00:24.7]}
58... Ng6 {[%clk 0:01:11.3]} 59. Nh6+ {[%clk 0:00:18.6]} 59... Kg5 {[%clk
0:01:11.6]} 60. Nf7+ {[%clk 0:00:19.8]} 60... Kf6 {[%clk 0:01:12.8]} 61. Nd8
{[%clk 0:00:20.9]} 61... Ne7 {[%clk 0:01:13.4]} 62. Nb7 {[%clk 0:00:21.6]} 62...
Nc6 {[%clk 0:01:14.4]} 63. Kf3 {[%clk 0:00:22.6]} 63... Kg5 {[%clk 0:01:13.3]}
64. Nd6 {[%clk 0:00:23.8]} 64... h4 {[%clk 0:01:13.4]} 65. Nf7+ {[%clk 0:00:25]}
65... Kf6 {[%clk 0:01:13.7]} 66. Nh6 {[%clk 0:00:24]} 66... Kg5 {[%clk
0:01:08.3]} 67. Nf7+ {[%clk 0:00:24.8]} 67... Kg6 {[%clk 0:01:09.7]} 68. Nd6
{[%clk 0:00:20.2]} 68... h3 {[%clk 0:01:10.6]} 69. Kf2 {[%clk 0:00:19]} 69...
Nxd4 {[%clk 0:01:05.3]} 70. cxd4 {[%clk 0:00:18.8]} 70... c3 {[%clk 0:01:06.3]}
0-1

[Event "*** Titled Tuesday Blitz"]
[Site "Chess.com"]
[Date "2019.04.02"]
[Round "2"]
[White "ChessicallyInclined"]
[Black "TregubovP"]
[Result "0-1"]
[WhiteElo "2534"]
[BlackElo "2489"]
[TimeControl "180+2"]
[EndTime "14:24:20 PDT"]
[Termination "TregubovP won by resignation"]

1. d4 {[%clk 0:03:01.9]} 1... Nf6 {[%clk 0:02:59.9]} 2. c4 {[%clk 0:03:03.1]}
2... e6 {[%clk 0:03:01]} 3. Nc3 {[%clk 0:03:03.5]} 3... Bb4 {[%clk 0:02:59]} 4.
e3 {[%clk 0:03:03.8]} 4... O-O {[%clk 0:02:56.4]} 5. Ne2 {[%clk 0:03:04.9]} 5...
d5 {[%clk 0:02:56.2]} 6. a3 {[%clk 0:03:05.6]} 6... Be7 {[%clk 0:02:56.8]} 7.
cxd5 {[%clk 0:03:03.8]} 7... exd5 {[%clk 0:02:57.2]} 8. Nf4 {[%clk 0:03:04.5]}
8... c6 {[%clk 0:02:58.2]} 9. Bd3 {[%clk 0:03:03.8]} 9... Na6 {[%clk 0:02:59.4]}
10. O-O {[%clk 0:03:04.1]} 10... Nc7 {[%clk 0:03:00.4]} 11. f3 {[%clk
0:02:59.8]} 11... c5 {[%clk 0:02:49.9]} 12. dxc5 {[%clk 0:02:49.2]} 12... Bxc5
{[%clk 0:02:49.9]} 13. b4 {[%clk 0:02:42.1]} 13... Bd6 {[%clk 0:02:42.4]} 14.
Nce2 {[%clk 0:02:37.1]} 14... Re8 {[%clk 0:02:41]} 15. Qd2 {[%clk 0:02:35.3]}
15... Be5 {[%clk 0:02:21.7]} 16. Nd4 {[%clk 0:02:27.7]} 16... Ne6 {[%clk
0:02:13.6]} 17. Bb2 {[%clk 0:02:24.5]} 17... Nxd4 {[%clk 0:02:11.6]} 18. Bxd4
{[%clk 0:02:22.9]} 18... Bxd4 {[%clk 0:02:12.2]} 19. exd4 {[%clk 0:02:24.8]}
19... Qb6 {[%clk 0:02:11.4]} 20. Kh1 {[%clk 0:02:21.1]} 20... Bd7 {[%clk
0:02:10.5]} 21. g4 {[%clk 0:02:14.4]} 21... h6 {[%clk 0:01:25.6]} 22. Rg1 {[%clk
0:02:07.6]} 22... g5 {[%clk 0:01:17.2]} 23. Ne2 {[%clk 0:01:57.9]} 23... Bb5
{[%clk 0:01:17.8]} 24. Ng3 {[%clk 0:01:57.8]} 24... Kh8 {[%clk 0:00:55.7]} 25.
Nf5 {[%clk 0:01:54.8]} 25... Bxd3 {[%clk 0:00:54.3]} 26. Qxd3 {[%clk 0:01:55]}
26... Ng8 {[%clk 0:00:55.4]} 27. Rae1 {[%clk 0:01:46.5]} 27... Re6 {[%clk
0:00:56.3]} 28. Re2 {[%clk 0:01:41.6]} 28... Rae8 {[%clk 0:00:55.4]} 29. Rge1
{[%clk 0:01:43]} 29... Rxe2 {[%clk 0:00:51]} 30. Rxe2 {[%clk 0:01:44.9]} 30...
Rxe2 {[%clk 0:00:51.8]} 31. Qxe2 {[%clk 0:01:46]} 31... Qe6 {[%clk 0:00:52.9]}
32. Qxe6 {[%clk 0:01:32.7]} 32... fxe6 {[%clk 0:00:53.1]} 33. Nd6 {[%clk
0:01:33.2]} 33... Ne7 {[%clk 0:00:42]} 34. b5 {[%clk 0:01:33.8]} 34... b6 {[%clk
0:00:30.1]} 35. Ne8 {[%clk 0:01:11.2]} 35... Kg8 {[%clk 0:00:28.9]} 36. Kg2
{[%clk 0:00:54.7]} 36... Kf7 {[%clk 0:00:29.5]} 37. Nc7 {[%clk 0:00:56]} 37...
Nc8 {[%clk 0:00:30]} 38. Kg3 {[%clk 0:00:49.2]} 38... Nd6 {[%clk 0:00:31.4]} 39.
a4 {[%clk 0:00:38.1]} 39... Nc4 {[%clk 0:00:31.7]} 40. Na6 {[%clk 0:00:38.8]}
40... Nb2 {[%clk 0:00:29.7]} 41. Nb4 {[%clk 0:00:40]} 41... Nxa4 {[%clk
0:00:29.7]} 42. Nc6 {[%clk 0:00:40.9]} 42... Nc3 {[%clk 0:00:30.2]} 43. Nxa7
{[%clk 0:00:41.8]} 43... Ne2+ {[%clk 0:00:31.7]} 44. Kf2 {[%clk 0:00:43]} 44...
Nxd4 {[%clk 0:00:33.2]} 45. Ke3 {[%clk 0:00:35.2]} 45... e5 {[%clk 0:00:34.3]}
46. Nc8 {[%clk 0:00:35.7]} 46... Nxb5 {[%clk 0:00:33.4]} 47. Nxb6 {[%clk
0:00:37.2]} 47... Ke6 {[%clk 0:00:34.4]} 48. Na4 {[%clk 0:00:35.2]} 48... Kd6
{[%clk 0:00:33.5]} 49. Nb2 {[%clk 0:00:34.9]} 49... Kc5 {[%clk 0:00:32.8]} 50.
Nd3+ {[%clk 0:00:35.9]} 50... Kd6 {[%clk 0:00:34]} 51. Nf2 {[%clk 0:00:36.6]}
51... Nd4 {[%clk 0:00:34.9]} 52. Nh1 {[%clk 0:00:32.9]} 52... Ke6 {[%clk
0:00:33.4]} 53. Ng3 {[%clk 0:00:33.9]} 53... Kf6 {[%clk 0:00:34.5]} 54. Nh5+
{[%clk 0:00:31.5]} 54... Kg6 {[%clk 0:00:35.1]} 55. Ng3 {[%clk 0:00:33]} 55...
Ne6 {[%clk 0:00:35.2]} 56. Nf5 {[%clk 0:00:32.8]} 56... Nf4 {[%clk 0:00:33.7]}
57. h4 {[%clk 0:00:30.3]} 57... gxh4 {[%clk 0:00:32.2]} 58. Nxh4+ {[%clk
0:00:32.2]} 58... Kg5 {[%clk 0:00:32.9]} 59. Nf5 {[%clk 0:00:28.3]} 59... h5
{[%clk 0:00:34.4]} 60. Ne7 {[%clk 0:00:25.7]} 60... h4 {[%clk 0:00:35.1]} 61.
Kf2 {[%clk 0:00:23]} 61... d4 {[%clk 0:00:35.5]} 62. Nc6 {[%clk 0:00:21.5]}
62... d3 {[%clk 0:00:36.6]} 63. Ke3 {[%clk 0:00:17.8]} 63... h3 {[%clk
0:00:36.9]} 64. Nxe5 {[%clk 0:00:15]} 64... h2 {[%clk 0:00:37.6]} 65. Nxd3
{[%clk 0:00:06.7]} 65... Nxd3 {[%clk 0:00:37.3]} 66. f4+ {[%clk 0:00:08.1]}
66... Nxf4 {[%clk 0:00:37.6]} 0-1

[Event "*** Titled Tuesday Blitz"]
[Site "Chess.com"]
[Date "2019.04.02"]
[Round "2"]
[White "Vegan4future"]
[Black "Robin-Side"]
[Result "1/2-1/2"]
[WhiteElo "2509"]
[BlackElo "2527"]
[TimeControl "180+2"]
[EndTime "14:24:20 PDT"]
[Termination "Game drawn by agreement"]

1. Nc3 {[%clk 0:03:01.9]} 1... g6 {[%clk 0:02:57]} 2. d4 {[%clk 0:03:01.2]} 2...
Bg7 {[%clk 0:02:57.7]} 3. e4 {[%clk 0:03:02.7]} 3... e6 {[%clk 0:02:58.9]} 4. h4
{[%clk 0:03:02]} 4... h5 {[%clk 0:02:58.4]} 5. Nf3 {[%clk 0:02:59.8]} 5... d5
{[%clk 0:02:59.1]} 6. Bg5 {[%clk 0:02:58.1]} 6... Ne7 {[%clk 0:02:58.8]} 7. Bd3
{[%clk 0:02:44.9]} 7... Nbc6 {[%clk 0:02:58.8]} 8. e5 {[%clk 0:02:39.5]} 8...
Nb4 {[%clk 0:02:55]} 9. Ne2 {[%clk 0:02:36.4]} 9... Nxd3+ {[%clk 0:02:54.7]} 10.
Qxd3 {[%clk 0:02:38.3]} 10... Bd7 {[%clk 0:02:51.6]} 11. Ng3 {[%clk 0:02:37.2]}
11... c5 {[%clk 0:02:43.7]} 12. c3 {[%clk 0:02:37]} 12... Qb6 {[%clk 0:02:42.1]}
13. Qd2 {[%clk 0:02:30.6]} 13... Bb5 {[%clk 0:02:33.9]} 14. a4 {[%clk
0:02:29.4]} 14... Bc4 {[%clk 0:02:30]} 15. dxc5 {[%clk 0:02:24.7]} 15... Qxc5
{[%clk 0:02:30]} 16. b4 {[%clk 0:02:25.7]} 16... Qc7 {[%clk 0:02:27.3]} 17. Qe3
{[%clk 0:02:22]} 17... Nc6 {[%clk 0:02:19.7]} 18. Bf6 {[%clk 0:02:20.3]} 18...
Bxf6 {[%clk 0:02:19]} 19. exf6 {[%clk 0:02:22.2]} 19... a6 {[%clk 0:01:33.9]}
20. Ne2 {[%clk 0:02:19.3]} 20... O-O-O {[%clk 0:01:24]} 21. O-O {[%clk
0:02:18.3]} 21... Kb8 {[%clk 0:01:10]} 22. b5 {[%clk 0:02:18.7]} 22... Na5
{[%clk 0:01:08.7]} 23. bxa6 {[%clk 0:02:16.7]} 23... Bxa6 {[%clk 0:01:09.1]} 24.
Rfb1 {[%clk 0:02:08.8]} 24... Nc4 {[%clk 0:01:07.7]} 25. Qd4 {[%clk 0:02:08.3]}
25... e5 {[%clk 0:01:03.8]} 26. Qd1 {[%clk 0:02:07.6]} 26... Qc6 {[%clk
0:00:56.2]} 27. Rb4 {[%clk 0:02:03.6]} 27... Qxf6 {[%clk 0:00:55.5]} 28. Rab1
{[%clk 0:01:59.3]} 28... Rd7 {[%clk 0:00:52.6]} 29. Nc1 {[%clk 0:01:52.3]} 29...
Rc8 {[%clk 0:00:24.3]} 30. Nb3 {[%clk 0:01:52.7]} 30... Qd6 {[%clk 0:00:20.1]}
31. Nbd2 {[%clk 0:01:49.7]} 31... f6 {[%clk 0:00:17.4]} 32. Nxc4 {[%clk
0:01:49.9]} 32... Rxc4 {[%clk 0:00:19.3]} 33. Rb6 {[%clk 0:01:49.2]} 33... Rc6
{[%clk 0:00:19.8]} 34. R6b3 {[%clk 0:01:45.2]} 34... Rdc7 {[%clk 0:00:20.7]} 35.
Qd2 {[%clk 0:01:40.5]} 35... Qc5 {[%clk 0:00:21]} 36. Qh6 {[%clk 0:01:40.2]}
36... Bd3 {[%clk 0:00:15.6]} 37. R1b2 {[%clk 0:01:38.3]} 37... Ka7 {[%clk
0:00:15]} 38. Qh8 {[%clk 0:01:34.5]} 38... Qa5 {[%clk 0:00:12.3]} 39. Qd8 {[%clk
0:01:31.6]} 39... Rxc3 {[%clk 0:00:11.8]} 40. Kh2 {[%clk 0:01:27.6]} 40... Rxb3
{[%clk 0:00:12.3]} 41. Rxb3 {[%clk 0:01:29.5]} 41... Qc5 {[%clk 0:00:12.5]} 42.
Rxd3 {[%clk 0:01:28.8]} 42... e4 {[%clk 0:00:13.1]} 43. Rxd5 {[%clk 0:01:29.9]}
43... Qc3 {[%clk 0:00:10.5]} 44. Ng1 {[%clk 0:01:29.8]} 44... f5 {[%clk
0:00:09.6]} 45. Qg5 {[%clk 0:01:24.6]} 45... Rc6 {[%clk 0:00:10.4]} 46. Rd8
{[%clk 0:01:19.7]} 46... Qe5+ {[%clk 0:00:10.3]} 47. Qg3 {[%clk 0:01:20.2]}
47... Qe7 {[%clk 0:00:11.2]} 48. Rg8 {[%clk 0:01:18.8]} 48... Qf7 {[%clk
0:00:10.8]} 49. Rd8 {[%clk 0:01:20.2]} 49... Kb6 {[%clk 0:00:12.3]} 50. a5+
{[%clk 0:01:20.2]} 50... Ka6 {[%clk 0:00:08.7]} 51. Ra8+ {[%clk 0:01:19.8]}
51... Kb5 {[%clk 0:00:10.1]} 52. Qe3 {[%clk 0:01:18.6]} 52... f4 {[%clk
0:00:10.4]} 53. Qe2+ {[%clk 0:01:19.4]} 53... Qc4 {[%clk 0:00:11.3]} 54. Qxc4+
{[%clk 0:01:18.3]} 54... Rxc4 {[%clk 0:00:13.2]} 55. Ne2 {[%clk 0:01:19.8]}
55... f3 {[%clk 0:00:13.8]} 56. gxf3 {[%clk 0:01:20.6]} 56... exf3 {[%clk
0:00:15.7]} 57. Ng1 {[%clk 0:01:21.1]} 57... Rxh4+ {[%clk 0:00:17.1]} 58. Nh3
{[%clk 0:01:19.7]} 58... g5 {[%clk 0:00:17.9]} 59. Kg3 {[%clk 0:01:21]} 59...
Ra4 {[%clk 0:00:08.5]} 60. Nxg5 {[%clk 0:01:21.9]} 60... Rg4+ {[%clk 0:00:08.9]}
61. Kxf3 {[%clk 0:01:21.8]} 61... Rxg5 {[%clk 0:00:10.8]} 62. Ra7 {[%clk
0:01:21.7]} 62... Kc6 {[%clk 0:00:10.7]} 63. a6 {[%clk 0:01:21.5]} 63... bxa6
{[%clk 0:00:11.8]} 64. Rxa6+ {[%clk 0:01:23.4]} 64... Kd7 {[%clk 0:00:13]} 65.
Rh6 {[%clk 0:01:24.8]} 65... Ke7 {[%clk 0:00:13.7]} 66. Kf4 {[%clk 0:01:25.9]}
66... Ra5 {[%clk 0:00:14.5]} 67. f3 {[%clk 0:01:27.1]} 67... Kf7 {[%clk
0:00:15.7]} 68. Rb6 {[%clk 0:01:26]} 68... Kg7 {[%clk 0:00:16.1]} 69. Kg3 {[%clk
0:01:26.4]} 69... Ra4 {[%clk 0:00:17.2]} 70. f4 {[%clk 0:01:27]} 70... h4+
{[%clk 0:00:17]} 71. Kg4 {[%clk 0:01:27.5]} 71... h3 {[%clk 0:00:18.4]} 72. Rb3
{[%clk 0:01:28.9]} 72... h2 {[%clk 0:00:18.3]} 73. Rh3 {[%clk 0:01:29.8]} 73...
Ra2 {[%clk 0:00:19.2]} 74. Kg5 {[%clk 0:01:30.8]} 74... Rg2+ {[%clk 0:00:19.1]}
75. Kf5 {[%clk 0:01:32.1]} 75... Rf2 {[%clk 0:00:20.3]} 76. Rh4 {[%clk
0:01:32.3]} 76... Rg2 {[%clk 0:00:20.3]} 77. Rh3 {[%clk 0:01:32.5]} 77... Rf2
{[%clk 0:00:21.3]} 78. Kg4 {[%clk 0:01:33.8]} 78... Kf6 {[%clk 0:00:19.9]} 79.
Kg3 {[%clk 0:01:32.1]} 79... Ra2 {[%clk 0:00:20.4]} 80. Rxh2 {[%clk 0:01:33.1]}
80... Rxh2 {[%clk 0:00:21.2]} 81. Kxh2 {[%clk 0:01:35]} 81... Kf5 {[%clk
0:00:22.7]} 82. Kg3 {[%clk 0:01:36.9]} 82... Kf6 {[%clk 0:00:24]} 83. Kg4 {[%clk
0:01:38.4]} 83... Kg6 {[%clk 0:00:25.2]} 1/2-1/2

[Event "*** Titled Tuesday Blitz"]
[Site "Chess.com"]
[Date "2019.04.02"]
[Round "2"]
[White "DagurR"]
[Black "djogrodek1"]
[Result "1-0"]
[WhiteElo "2545"]
[BlackElo "2498"]
[TimeControl "180+2"]
[EndTime "14:24:21 PDT"]
[Termination "DagurR won on time"]

1. d4 {[%clk 0:03:01.9]} 1... d5 {[%clk 0:03:00.4]} 2. c4 {[%clk 0:03:02]} 2...
c6 {[%clk 0:03:01.4]} 3. Nf3 {[%clk 0:03:03]} 3... Nf6 {[%clk 0:03:02]} 4. Nc3
{[%clk 0:03:04.2]} 4... e6 {[%clk 0:03:03.2]} 5. Bg5 {[%clk 0:03:04.9]} 5...
dxc4 {[%clk 0:03:04.2]} 6. e4 {[%clk 0:02:54]} 6... b5 {[%clk 0:03:05.1]} 7. Be2
{[%clk 0:02:39.7]} 7... Qb6 {[%clk 0:03:02.3]} 8. O-O {[%clk 0:02:36.2]} 8...
Bb7 {[%clk 0:03:02.9]} 9. d5 {[%clk 0:02:16.2]} 9... cxd5 {[%clk 0:02:59.2]} 10.
exd5 {[%clk 0:02:17.2]} 10... Nxd5 {[%clk 0:02:57.9]} 11. Nd4 {[%clk 0:01:32.7]}
11... a6 {[%clk 0:02:29.2]} 12. Bf3 {[%clk 0:01:19.7]} 12... Nxc3 {[%clk
0:02:22.5]} 13. bxc3 {[%clk 0:01:21.6]} 13... Nd7 {[%clk 0:02:19.2]} 14. Re1
{[%clk 0:01:13.9]} 14... Nc5 {[%clk 0:01:33.8]} 15. a4 {[%clk 0:00:37.2]} 15...
bxa4 {[%clk 0:00:52.8]} 16. Rb1 {[%clk 0:00:37.9]} 16... Nb3 {[%clk 0:00:52.6]}
17. Bxb7 {[%clk 0:00:39.1]} 17... Qxb7 {[%clk 0:00:53.3]} 18. Nxe6 {[%clk
0:00:40.7]} 18... fxe6 {[%clk 0:00:52.3]} 19. Rxe6+ {[%clk 0:00:41.7]} 19... Kf7
{[%clk 0:00:51.8]} 20. Qg4 {[%clk 0:00:36.1]} 20... Bc5 {[%clk 0:00:37.1]} 21.
Rbe1 {[%clk 0:00:21.5]} 21... Rhe8 {[%clk 0:00:32.3]} 22. Qh5+ {[%clk
0:00:20.9]} 22... Kg8 {[%clk 0:00:30.8]} 23. Rxe8+ {[%clk 0:00:21.4]} 23... Rxe8
{[%clk 0:00:32.7]} 24. Rxe8+ {[%clk 0:00:22.2]} 24... Bf8 {[%clk 0:00:33.3]} 25.
Qg4 {[%clk 0:00:19.3]} 25... Qf7 {[%clk 0:00:29]} 26. Rc8 {[%clk 0:00:18.7]}
26... a3 {[%clk 0:00:26]} 27. Be7 {[%clk 0:00:18.5]} 27... Qxe7 {[%clk 0:00:21]}
28. Qxc4+ {[%clk 0:00:19.7]} 28... Qf7 {[%clk 0:00:18.9]} 29. Qxa6 {[%clk
0:00:13]} 29... Nd2 {[%clk 0:00:11.1]} 30. Qxa3 {[%clk 0:00:11.9]} 30... Ne4
{[%clk 0:00:11]} 31. Qb2 {[%clk 0:00:10.1]} 31... Qd7 {[%clk 0:00:11.2]} 32.
Qb3+ {[%clk 0:00:10.4]} 32... Qf7 {[%clk 0:00:11.1]} 33. Qxf7+ {[%clk
0:00:09.1]} 33... Kxf7 {[%clk 0:00:13]} 34. f3 {[%clk 0:00:09.6]} 34... Nd6
{[%clk 0:00:13.7]} 35. Rc7+ {[%clk 0:00:10.5]} 35... Be7 {[%clk 0:00:14.9]} 36.
c4 {[%clk 0:00:12]} 36... Ke6 {[%clk 0:00:16.5]} 37. Kf1 {[%clk 0:00:13.2]}
37... Nf5 {[%clk 0:00:16.1]} 38. Ke2 {[%clk 0:00:13.4]} 38... Bd6 {[%clk
0:00:17]} 39. Rc8 {[%clk 0:00:13]} 39... Bxh2 {[%clk 0:00:17]} 40. g4 {[%clk
0:00:13.4]} 40... Ne7 {[%clk 0:00:15.9]} 41. Ra8 {[%clk 0:00:12.4]} 41... Bd6
{[%clk 0:00:15.9]} 42. Kd3 {[%clk 0:00:13]} 42... Nc6 {[%clk 0:00:15.4]} 43. Ke4
{[%clk 0:00:13.7]} 43... h6 {[%clk 0:00:09.4]} 44. Re8+ {[%clk 0:00:12]} 44...
Kf7 {[%clk 0:00:06.1]} 45. Ra8 {[%clk 0:00:11.8]} 45... Ke6 {[%clk 0:00:06.5]}
46. f4 {[%clk 0:00:12.5]} 46... Ne7 {[%clk 0:00:05.2]} 47. Ra6 {[%clk
0:00:13.2]} 47... Kd7 {[%clk 0:00:06]} 48. Ra7+ {[%clk 0:00:14.3]} 48... Kc6
{[%clk 0:00:07.2]} 49. f5 {[%clk 0:00:11.5]} 49... Bc5 {[%clk 0:00:08.5]} 50.
Ra6+ {[%clk 0:00:12.4]} 50... Kd7 {[%clk 0:00:07.7]} 51. Ra5 {[%clk 0:00:12.2]}
51... Bb4 {[%clk 0:00:07]} 52. Rb5 {[%clk 0:00:11.5]} 52... Bd2 {[%clk
0:00:06.8]} 53. Rb7+ {[%clk 0:00:12.2]} 53... Kd8 {[%clk 0:00:05.9]} 54. Ke5
{[%clk 0:00:11.8]} 54... Bg5 {[%clk 0:00:04.5]} 55. Ke6 {[%clk 0:00:12.5]} 55...
Bf6 {[%clk 0:00:04.6]} 56. c5 {[%clk 0:00:12.6]} 1-0